bitfinex-derivatives/quotes_BTCF0:USTF0_20250704
["timestamp","ask_amount","ask_price","bid_price","bid_amount"]
[1751636966927,1.27368275,108240.0,108230.0,0.07562601]
[1751636967125,1.63448275,108240.0,108230.0,0.01562601]
[1751636967327,0.1847451,108220.0,108210.0,0.52514009]
[1751636967530,0.7198773,108230.0,108220.0,0.1847451]
[1751636967724,1.30634,108230.0,108220.0,0.4147451]
[1751636967926,0.94642,108230.0,108220.0,1.49099879]
[1751636968130,0.94654,108230.0,108220.0,1.49099879]
[1751636968330,0.88244,108230.0,108220.0,1.55269879]
[1751636968527,0.88244,108230.0,108220.0,1.2303451]
[1751636969020,0.34525854,108240.0,108230.0,0.184728]
[1751636969225,1.23077854,108240.0,108230.0,0.865528]
[1751636969427,1.89313223,108240.0,108230.0,0.865528]
[1751636969632,1.55313223,108240.0,108230.0,0.865528]
[1751636970033,1.23077854,108240.0,108230.0,0.865528]
[1751636970237,1.55385223,108240.0,108230.0,0.865528]
[1751636970529,0.88808,108240.0,108230.0,1.18788169]
[1751636970730,0.37855985,108260.0,108230.0,1.25293769]
[1751636970935,1.098574,108260.0,108250.0,0.88709841]
[1751636971128,0.025937,108260.0,108250.0,1.19709841]
[1751636971325,0.916857,108260.0,108250.0,0.93974472]
[1751636971531,1.42388769,108260.0,108250.0,0.93974472]
[1751636971730,0.56596769,108260.0,108250.0,0.90774472]
[1751636971936,1.48982769,108260.0,108250.0,0.90774472]
[1751636972130,1.34773568,108260.0,108250.0,0.51394472]
[1751636972327,1.87849568,108260.0,108250.0,0.51394472]
[1751636972534,1.89829568,108260.0,108250.0,0.51394472]
[1751636972734,2.23529568,108260.0,108250.0,0.51394472]
[1751636973534,1.87935868,108260.0,108250.0,0.51394472]
[1751636973740,1.55700499,108260.0,108250.0,0.51394472]
[1751636973928,1.55700499,108260.0,108250.0,0.54684472]
[1751636974329,1.52680499,108260.0,108250.0,0.54684472]
[1751636975033,1.84915868,108260.0,108250.0,0.54684472]
[1751636975531,1.87508784,108260.0,108250.0,0.57794472]
[1751636975733,1.55273415,108260.0,108250.0,0.57794472]
[1751636976038,1.87508784,108260.0,108250.0,0.57794472]
[1751636976234,2.23508784,108260.0,108250.0,0.51394472]
[1751636976537,1.87476784,108260.0,108250.0,0.51394472]
[1751636977634,2.22476784,108260.0,108250.0,0.32925062]
[1751636978532,2.19883868,108260.0,108250.0,0.32925062]
[1751636978941,1.87648499,108260.0,108250.0,0.31]
[1751636979236,2.19883868,108260.0,108250.0,0.31]
[1751636980236,2.19883868,108260.0,108250.0,0.494694]
[1751636983642,2.19883868,108260.0,108250.0,0.31]
[1751636983842,1.90230541,108260.0,108250.0,0.4946941]
[1751636984034,2.22465902,108260.0,108250.0,0.4946941]
[1751636984535,2.22361902,108260.0,108250.0,0.4946941]
[1751636984740,2.22361902,108260.0,108250.0,0.31]
[1751636985043,2.22361902,108260.0,108240.0,1.12315644]
[1751636985044,0.1846941,108250.0,108240.0,0.32617934]
[1751636985235,0.94204779,108250.0,108240.0,0.58617934]
[1751636985431,1.44050738,108250.0,108230.0,0.1947272]
[1751636985634,1.96070839,108240.0,108230.0,0.16]
[1751636985842,2.34462027,108240.0,108230.0,0.16]
[1751636986042,1.34146658,108240.0,108230.0,0.3447282]
[1751636986245,1.98382027,108240.0,108230.0,0.3447282]
[1751636986542,1.66382027,108240.0,108230.0,0.3447282]
[1751636986839,1.99382027,108240.0,108230.0,0.16]
[1751636987041,2.35462027,108240.0,108230.0,0.16]
[1751636988539,2.35562027,108240.0,108230.0,0.161]
[1751636989346,2.35662027,108240.0,108230.0,0.17468282]
[1751636989832,2.67897396,108240.0,108230.0,0.17468282]
[1751636990030,2.35662027,108240.0,108230.0,0.17468282]
[1751636990236,2.67897396,108240.0,108230.0,0.17468282]
[1751636990641,2.67997396,108240.0,108230.0,0.17468282]
[1751636991235,3.0016091,108240.0,108230.0,0.17468282]
[1751636991437,3.02742816,108240.0,108230.0,0.17468282]
[1751636991739,0.1385542,108230.0,108210.0,0.38085024]
[1751636991935,1.39569899,108220.0,108210.0,0.59266024]
[1751636992140,1.44397336,108220.0,108210.0,0.59266024]
[1751636992738,1.12161967,108220.0,108210.0,0.62346024]
[1751636992942,1.09071967,108220.0,108210.0,0.94581393]
[1751636993137,1.09071967,108220.0,108210.0,0.6143465]
[1751636993343,1.41407336,108220.0,108210.0,0.6143465]
[1751636993743,0.52547336,108220.0,108210.0,0.6143465]
[1751636994243,1.41367336,108220.0,108210.0,0.6143465]
[1751636994435,1.41367336,108220.0,108200.0,0.686769]
[1751636994436,0.1847624,108210.0,108200.0,0.686769]
[1751636994634,1.02485756,108220.0,108210.0,0.1847624]
[1751636994835,1.55409756,108220.0,108210.0,0.5490624]
[1751636995334,0.34370387,108220.0,108210.0,0.5490624]
[1751636995536,0.002,108220.0,108210.0,1.23221609]
[1751636995742,0.88996,108220.0,108210.0,1.23221609]
[1751636996337,0.891,108220.0,108210.0,1.73221609]
[1751636997341,0.003,108220.0,108210.0,2.52703209]
[1751636997543,0.89116,108220.0,108210.0,1.8446784]
[1751636997745,0.89116,108220.0,108210.0,2.16703209]
[1751636998040,0.89116,108220.0,108210.0,2.52703209]
[1751636998243,0.89116,108220.0,108210.0,1.5946784]
[1751636998443,0.89116,108220.0,108210.0,1.91703209]
[1751637000136,0.89116,108220.0,108210.0,1.5946784]
[1751637000341,0.0207919,108220.0,108210.0,1.73221609]
[1751637000541,0.89304,108220.0,108210.0,2.60938578]
[1751637000943,1.21251369,108220.0,108210.0,1.1608]
[1751637001250,1.71725899,108220.0,108210.0,0.5]
[1751637001456,1.77965899,108220.0,108210.0,0.5]
[1751637001653,1.77965899,108220.0,108210.0,0.6847624]
[1751637001847,1.77965899,108220.0,108210.0,0.5]
[1751637002456,0.1847623,108210.0,108200.0,1.24781438]
[1751637002657,0.1847623,108210.0,108200.0,1.10945929]
[1751637002957,0.50711599,108210.0,108200.0,1.10945929]
[1751637003157,0.50711599,108210.0,108200.0,1.0262548]
[1751637003858,0.50711599,108210.0,108200.0,1.04010393]
[1751637004054,0.1847623,108210.0,108200.0,1.04010393]
[1751637004255,0.1847623,108210.0,108200.0,1.37183122]
[1751637004554,0.002,108210.0,108200.0,1.37483122]
[1751637004754,0.003,108210.0,108200.0,1.37583122]
[1751637005557,0.1877624,108210.0,108200.0,1.05347753]
[1751637006450,0.003,108210.0,108200.0,1.05347753]
[1751637007259,0.1877624,108210.0,108200.0,1.0396284]
[1751637007461,0.003,108210.0,108200.0,1.12690788]
[1751637007661,0.1877624,108210.0,108200.0,1.12690788]
[1751637008361,0.51011609,108210.0,108200.0,1.12690788]
[1751637009460,0.32535369,108210.0,108200.0,1.12690788]
[1751637010655,0.003,108210.0,108200.0,1.12690788]
[1751637010857,0.89056,108210.0,108200.0,1.11307445]
[1751637011560,1.21291369,108210.0,108200.0,1.0534651]
[1751637011759,1.42777609,108210.0,108200.0,1.0534651]
[1751637011960,0.54021609,108210.0,108200.0,1.0534651]
[1751637012266,1.42837609,108210.0,108200.0,1.0534651]
[1751637012457,1.46157609,108210.0,108200.0,1.0534651]
[1751637013152,1.46157609,108210.0,108200.0,1.0210651]
[1751637013760,2.09392978,108210.0,108200.0,0.5899915]
[1751637013955,2.48782978,108210.0,108200.0,0.3128367]
[1751637014756,2.16547609,108210.0,108200.0,0.3128367]
[1751637014957,2.48782978,108210.0,108200.0,0.3128367]
[1751637015360,2.20168096,108210.0,108200.0,0.006]
[1751637015568,2.54168096,108210.0,108200.0,0.02102337]
[1751637015766,2.54368096,108210.0,108200.0,0.02102337]
[1751637016463,2.54368096,108210.0,108190.0,0.00184851]
[1751637016464,0.1847794,108200.0,108190.0,0.00184851]
[1751637016765,0.1847794,108200.0,108180.0,0.18859847]
[1751637016766,0.1847965,108190.0,108180.0,0.18859847]
[1751637016966,1.29955019,108190.0,108180.0,0.00378487]
[1751637017175,1.32544285,108190.0,108180.0,0.00378487]
[1751637017470,1.32544285,108190.0,108180.0,0.18859847]
[1751637018265,1.32544285,108190.0,108160.0,0.56517689]
[1751637018266,0.1848307,108170.0,108160.0,0.56517689]
[1751637018472,1.39662439,108170.0,108160.0,0.62517689]
[1751637019762,1.53480437,108170.0,108160.0,0.82517689]
[1751637019961,1.86480437,108170.0,108160.0,0.46437689]
[1751637020166,1.86480437,108170.0,108160.0,0.20437689]
[1751637020365,1.86480437,108170.0,108160.0,0.29437689]
[1751637020568,0.64536437,108170.0,108160.0,0.48437689]
[1751637020771,1.53416437,108170.0,108160.0,0.48437689]
[1751637020972,0.32301068,108170.0,108160.0,0.80673058]
[1751637021273,0.29512078,108180.0,108170.0,0.1848307]
[1751637021464,1.24676078,108180.0,108170.0,0.81718439]
[1751637021771,1.91911447,108180.0,108170.0,0.4948307]
[1751637021967,1.56911447,108180.0,108170.0,0.4948307]
[1751637022172,1.94959447,108180.0,108170.0,0.4948307]
[1751637022674,1.62824078,108180.0,108170.0,0.4948307]
[1751637022871,0.38854062,108180.0,108170.0,0.4948307]
[1751637023073,0.02088508,108180.0,108170.0,1.46798439]
[1751637023369,1.09477868,108180.0,108170.0,1.19178439]
[1751637023675,1.09477868,108180.0,108170.0,1.53178439]
[1751637024174,1.09477868,108180.0,108170.0,0.8694307]
[1751637024370,1.09477868,108180.0,108170.0,1.56178439]
[1751637024371,0.02088508,108180.0,108170.0,1.56178439]
[1751637024576,0.90984508,108180.0,108170.0,1.56178439]
[1751637024778,0.90976508,108180.0,108170.0,1.56178439]
[1751637025277,1.09457868,108180.0,108170.0,1.56178439]
[1751637025467,1.09445868,108180.0,108170.0,1.54178439]
[1751637025664,0.90952508,108180.0,108170.0,1.2194307]
[1751637025868,1.09421868,108180.0,108170.0,1.3586307]
[1751637026076,1.0763336,108180.0,108170.0,1.3694307]
[1751637026570,1.0763336,108180.0,108170.0,1.3365307]
[1751637026772,1.1072336,108180.0,108170.0,0.7909]
[1751637026974,1.57464439,108180.0,108170.0,1.3365307]
[1751637027269,1.18867594,108180.0,108170.0,0.8365307]
[1751637027474,1.26430627,108180.0,108170.0,0.8365307]
[1751637028077,1.26430627,108180.0,108170.0,0.8686307]
[1751637029174,1.21496393,108180.0,108170.0,0.8686307]
[1751637029475,1.1393336,108180.0,108170.0,0.8686307]
[1751637032277,1.18057002,108180.0,108170.0,0.8686307]
[1751637033183,1.19798148,108180.0,108170.0,0.8686307]
[1751637033373,1.19798148,108180.0,108170.0,0.5078307]
[1751637034482,1.98169227,108180.0,108170.0,0.3]
[1751637034680,2.01439227,108180.0,108170.0,0.4848307]
[1751637034876,2.37519227,108180.0,108170.0,0.3]
[1751637035474,0.1848307,108170.0,108160.0,0.3048319]
[1751637035678,0.1848478,108160.0,108150.0,0.0018492]
[1751637035875,2.68018938,108160.0,108150.0,0.0018492]
[1751637036075,2.27647859,108160.0,108150.0,0.0018492]
[1751637036280,2.30245283,108160.0,108150.0,0.0018492]
[1751637036781,2.27647859,108160.0,108150.0,0.0018492]
[1751637037185,1.42499219,108160.0,108150.0,0.0018492]
[1751637037381,2.56951219,108160.0,108150.0,0.0018492]
[1751637037779,2.56951219,108160.0,108150.0,0.2367141]
[1751637037975,2.57151219,108160.0,108150.0,0.2367141]
[1751637038386,2.54554647,108160.0,108150.0,0.2367141]
[1751637038679,2.54830647,108160.0,108150.0,0.2367141]
[1751637038883,2.54830647,108160.0,108150.0,0.0018492]
[1751637039077,2.54830647,108160.0,108140.0,0.2310987]
[1751637039078,0.3697586,108150.0,108140.0,0.2310987]
[1751637039283,0.184882,108140.0,108130.0,0.2311109]
[1751637039584,0.184882,108140.0,108130.0,0.3411109]
[1751637039585,1.92841279,108140.0,108130.0,0.3411109]
[1751637039982,0.1848991,108130.0,108120.0,0.11548428]
[1751637040183,0.2800991,108130.0,108120.0,0.42741717]
[1751637040378,1.06380989,108130.0,108120.0,0.42741717]
[1751637040583,1.30887583,108140.0,108130.0,0.1848991]
[1751637040776,0.99832504,108140.0,108130.0,0.4548991]
[1751637040976,2.54831583,108140.0,108130.0,0.4853991]
[1751637041182,0.73123583,108140.0,108130.0,0.4853991]
[1751637041383,2.25937583,108140.0,108130.0,0.4853991]
[1751637041586,1.90937583,108140.0,108130.0,0.4853991]
[1751637041786,2.26937583,108140.0,108130.0,0.4853991]
[1751637041986,2.21937583,108140.0,108130.0,0.4853991]
[1751637042285,1.90937583,108140.0,108130.0,0.4853991]
[1751637042485,2.24237583,108140.0,108130.0,0.4853991]
[1751637042988,1.91237583,108140.0,108130.0,0.4853991]
[1751637043389,2.26237583,108140.0,108130.0,0.4548991]
[1751637043590,0.1848991,108130.0,108120.0,0.86041997]
[1751637043891,0.99170989,108130.0,108120.0,0.30383467]
[1751637044080,1.41770989,108130.0,108120.0,0.30383467]
[1751637044278,2.56386989,108130.0,108120.0,0.30383467]
[1751637044579,1.41770989,108130.0,108120.0,0.18875087]
[1751637044782,2.56390989,108130.0,108120.0,0.24875087]
[1751637044991,2.56406989,108130.0,108120.0,0.21383467]
[1751637045286,1.0139991,108130.0,108120.0,0.39875037]
[1751637045484,2.56406989,108130.0,108120.0,0.39875037]
[1751637045787,1.44561534,108130.0,108120.0,0.39875037]
[1751637046090,2.59221534,108130.0,108120.0,0.39875037]
[1751637046287,2.56630989,108130.0,108120.0,0.39875037]
[1751637046478,2.56730989,108130.0,108120.0,0.39875037]
[1751637046687,0.003,108130.0,108120.0,1.54326116]
[1751637046989,1.0846986,108130.0,108120.0,0.82345037]
[1751637047189,0.1878986,108130.0,108120.0,0.85595037]
[1751637047390,1.48932939,108130.0,108120.0,0.79085037]
[1751637047694,1.87954939,108130.0,108120.0,0.43005037]
[1751637047892,1.91064939,108130.0,108120.0,0.39875037]
[1751637048091,1.94184939,108130.0,108120.0,0.39875037]
[1751637048295,1.04520939,108130.0,108120.0,0.39875037]
[1751637048491,1.94180939,108130.0,108120.0,0.39875037]
[1751637048793,1.66380939,108130.0,108120.0,0.39875037]
[1751637049194,0.76720939,108130.0,108120.0,0.39875037]
[1751637049391,0.2211986,108130.0,108120.0,0.39875037]
[1751637049592,0.1908986,108130.0,108120.0,0.82445037]
[1751637049792,0.90184,108130.0,108120.0,0.82445037]
[1751637049992,1.0867389,108130.0,108120.0,0.82445037]
[1751637050293,0.90184,108130.0,108120.0,0.82445037]
[1751637050493,0.006,108130.0,108120.0,0.82445037]
[1751637050693,1.0869789,108130.0,108120.0,0.82445037]
[1751637051082,0.006,108130.0,108120.0,0.82445037]
[1751637051287,0.90208,108130.0,108120.0,0.82445037]
[1751637051689,0.1908989,108130.0,108120.0,0.82445037]
[1751637051994,1.0872189,108130.0,108120.0,0.82445037]
[1751637052299,1.49092969,108130.0,108120.0,0.79135037]
[1751637052589,1.58472969,108130.0,108120.0,0.00383467]
[1751637052790,1.90472969,108130.0,108120.0,0.00383467]
[1751637052986,1.90472969,108130.0,108120.0,0.08383467]
[1751637053186,2.26552969,108130.0,108120.0,0.08383467]
[1751637053393,2.26552969,108130.0,108120.0,0.29383467]
[1751637053791,2.01552969,108130.0,108120.0,0.29383467]
[1751637054493,2.01552969,108130.0,108120.0,0.47875077]
[1751637054692,1.94552969,108130.0,108120.0,0.47875077]
[1751637055999,2.31552969,108130.0,108120.0,0.47875077]
[1751637056199,1.41920969,108130.0,108120.0,0.47875077]
[1751637056400,2.31524969,108130.0,108120.0,0.47875077]
[1751637056591,2.31524969,108130.0,108120.0,0.29383467]
[1751637056797,2.31524969,108130.0,108120.0,0.47875077]
[1751637057298,2.33306397,108130.0,108120.0,0.47875077]
[1751637059196,2.33306397,108130.0,108120.0,0.00383467]
[1751637059800,0.1849161,108120.0,108110.0,0.00184988]
[1751637059997,2.46640689,108120.0,108110.0,0.24184988]
[1751637060802,2.0626161,108120.0,108110.0,0.24184988]
[1751637061000,2.46632689,108120.0,108110.0,0.24184988]
[1751637061196,2.15632689,108120.0,108110.0,0.24184988]
[1751637061403,2.47832689,108120.0,108110.0,0.24184988]
[1751637061600,2.22832689,108120.0,108110.0,0.24184988]
[1751637061998,2.22832689,108120.0,108110.0,0.42678308]
[1751637061999,2.22932689,108120.0,108110.0,0.42678308]
[1751637062602,2.50776689,108120.0,108110.0,0.24184988]
[1751637062902,2.53776689,108120.0,108110.0,0.42678308]
[1751637063102,0.6110161,108120.0,108110.0,0.42678308]
[1751637063304,0.1879161,108120.0,108110.0,1.51129387]
[1751637063605,0.8966,108120.0,108110.0,1.61949387]
[1751637063908,0.10068292,108170.0,108150.0,0.2772739]
[1751637064101,0.58855849,108160.0,108150.0,0.29]
[1751637064295,0.97499273,108160.0,108150.0,0.3863]
[1751637064491,0.64639273,108160.0,108150.0,0.5711648]
[1751637064702,0.99933695,108160.0,108150.0,0.4748648]
[1751637064903,0.66873695,108160.0,108150.0,0.4748648]
[1751637065098,0.29722616,108160.0,108150.0,0.8356648]
[1751637065405,0.72598404,108160.0,108150.0,0.8356648]
[1751637065698,0.30222616,108160.0,108150.0,0.29]
[1751637065901,0.70593695,108160.0,108150.0,0.29]
[1751637066104,0.1848648,108150.0,108140.0,0.1848729]
[1751637066401,0.1848648,108150.0,108140.0,0.27]
[1751637066402,0.65307559,108150.0,108140.0,0.27]
[1751637066601,0.65307559,108150.0,108140.0,0.4548819]
[1751637066802,1.02307559,108150.0,108140.0,0.4548819]
[1751637067099,1.03307559,108150.0,108140.0,0.27]
[1751637067299,1.39387559,108150.0,108140.0,0.27]
[1751637067609,1.25522809,108150.0,108120.0,0.70359673]
[1751637067906,1.25522809,108150.0,108120.0,1.03689673]
[1751637067907,0.184899,108130.0,108120.0,1.03689673]
[1751637068101,0.184899,108130.0,108120.0,0.50412703]
[1751637068407,0.609399,108130.0,108120.0,0.50412703]
[1751637068703,0.249399,108130.0,108120.0,0.50412703]
[1751637068905,0.217199,108130.0,108120.0,0.50412703]
[1751637069095,0.184899,108130.0,108120.0,0.97153782]
[1751637069299,0.184899,108130.0,108120.0,0.56782703]
[1751637069599,0.2773321,108140.0,108130.0,0.184899]
[1751637069799,0.2773321,108140.0,108130.0,1.34340979]
[1751637070002,1.26473289,108150.0,108140.0,0.1848819]
[1751637070207,1.25688391,108150.0,108140.0,0.8776819]
[1751637070408,1.26004391,108150.0,108140.0,0.9085819]
[1751637070600,1.26004391,108150.0,108140.0,0.5477819]
[1751637070906,1.28004391,108150.0,108140.0,0.9085819]
[1751637071208,1.29204391,108150.0,108140.0,0.5178819]
[1751637071503,1.29894391,108150.0,108140.0,0.5188819]
[1751637071804,1.31894391,108150.0,108140.0,0.5188819]
[1751637072203,1.7026547,108150.0,108140.0,0.302]
[1751637072410,2.0934547,108150.0,108140.0,0.302]
[1751637072597,2.0934547,108150.0,108140.0,0.4868819]
[1751637072907,1.68974391,108150.0,108140.0,0.4868819]
[1751637073110,2.0934547,108150.0,108140.0,0.4868819]
[1751637073309,1.69974391,108150.0,108140.0,0.4868819]
[1751637073506,1.65974391,108150.0,108140.0,0.4868819]
[1751637073707,1.29894391,108150.0,108140.0,0.4868819]
[1751637073897,1.65469289,108150.0,108140.0,0.4868819]
[1751637074102,1.29389289,108150.0,108140.0,0.4868819]
[1751637074407,1.69760368,108150.0,108140.0,0.4868819]
[1751637074808,1.2761336,108150.0,108140.0,0.4868819]
[1751637075009,1.67984439,108150.0,108140.0,0.4868819]
[1751637075210,1.98776439,108150.0,108140.0,0.302]
[1751637075513,1.98776439,108150.0,108140.0,0.002]
[1751637075514,1.97776439,108150.0,108140.0,0.002]
[1751637075812,2.33856439,108150.0,108140.0,0.002]
[1751637076209,1.9348536,108150.0,108140.0,0.002]
[1751637076511,2.33856439,108150.0,108140.0,0.002]
[1751637077406,1.9348536,108150.0,108140.0,0.002]
[1751637077710,2.33856439,108150.0,108140.0,0.002]
[1751637078210,2.33856439,108150.0,108140.0,0.2568818]
[1751637078912,2.33832439,108150.0,108140.0,0.2568818]
[1751637079301,1.9346136,108150.0,108140.0,0.2568818]
[1751637079506,2.33832439,108150.0,108140.0,0.072]
[1751637079901,2.36336111,108150.0,108140.0,0.002]
[1751637080506,1.95965032,108150.0,108140.0,0.1868819]
[1751637080809,2.36336111,108150.0,108140.0,0.1868819]
[1751637082312,2.36309645,108150.0,108140.0,0.1868819]
[1751637082709,1.95938566,108150.0,108140.0,0.1868819]
[1751637082910,2.36309645,108150.0,108140.0,0.1868819]
[1751637083608,2.33832439,108150.0,108140.0,0.002]
[1751637086018,1.9360936,108150.0,108140.0,0.1868819]
[1751637086218,2.33980439,108150.0,108140.0,0.1868819]
[1751637086414,2.36457909,108150.0,108140.0,0.1868819]
[1751637086619,2.00377909,108150.0,108140.0,0.1868819]
[1751637086819,1.97900439,108150.0,108140.0,0.1868819]
[1751637087224,1.09549906,108150.0,108140.0,0.002]
[1751637087423,2.00233906,108150.0,108140.0,0.002]
[1751637087726,1.96943906,108150.0,108140.0,0.002]
[1751637087924,1.99993906,108150.0,108140.0,0.002]
[1751637088216,1.99973906,108150.0,108140.0,0.002]
[1751637088525,1.42912439,108150.0,108140.0,0.002]
[1751637088819,2.39520439,108150.0,108140.0,0.002]
[1751637089018,0.6941136,108150.0,108140.0,0.002]
[1751637089211,1.09782439,108150.0,108140.0,0.1868819]
[1751637089417,0.89782439,108150.0,108140.0,0.2568819]
[1751637089615,0.006,108150.0,108140.0,0.97596246]
[1751637089818,1.0969448,108150.0,108140.0,1.33676246]
[1751637090018,0.91208,108150.0,108140.0,1.34600322]
[1751637090228,0.91252,108150.0,108140.0,1.34600322]
[1751637090526,1.0973848,108150.0,108140.0,1.34600322]
[1751637090718,0.1908648,108150.0,108140.0,1.34600322]
[1751637090918,1.0971848,108150.0,108140.0,1.34600322]
[1751637091217,0.1908648,108150.0,108140.0,0.94229243]
[1751637091416,1.0969848,108150.0,108140.0,1.34600322]
[1751637091823,1.0969848,108150.0,108140.0,0.93305167]
[1751637092319,0.1908648,108150.0,108140.0,0.93305167]
[1751637092524,1.0963848,108150.0,108140.0,0.93305167]
[1751637093226,1.0964248,108150.0,108140.0,0.93305167]
[1751637093616,0.1908648,108150.0,108140.0,1.33676246]
[1751637093812,0.01777846,108160.0,108150.0,0.1848648]
[1751637094013,0.01777846,108160.0,108150.0,1.28177559]
[1751637094214,0.63474459,108180.0,108170.0,0.20426282]
[1751637094425,1.1359138,108180.0,108170.0,0.52426282]
[1751637094620,1.57970459,108180.0,108170.0,0.94746282]
[1751637094821,0.72712589,108190.0,108180.0,0.1848136]
[1751637095026,1.63212589,108190.0,108180.0,0.6828]
[1751637095324,1.88512589,108190.0,108180.0,0.6828]
[1751637095520,1.88512589,108190.0,108180.0,0.6208]
[1751637095726,0.1848136,108180.0,108170.0,0.69195322]
[1751637095921,0.68892439,108180.0,108170.0,0.87125322]
[1751637096121,0.2352136,108180.0,108170.0,0.87125322]
[1751637096329,0.63892439,108180.0,108170.0,0.93365322]
[1751637096521,0.61892439,108180.0,108170.0,0.93365322]
[1751637096829,0.2152136,108180.0,108170.0,0.93365322]
[1751637097126,0.2788136,108180.0,108170.0,0.93365322]
[1751637097326,0.61892439,108180.0,108170.0,0.93365322]
[1751637097527,0.71252439,108180.0,108170.0,0.87125322]
[1751637098726,0.68252439,108180.0,108170.0,0.87125322]
[1751637098927,0.76252439,108180.0,108170.0,0.87125322]
[1751637099220,0.3588136,108180.0,108170.0,0.87125322]
[1751637099427,0.76252439,108180.0,108170.0,0.87125322]
[1751637100330,0.94652439,108180.0,108170.0,0.87225322]
[1751637100730,1.30732439,108180.0,108170.0,0.001]
[1751637100935,1.33209929,108180.0,108170.0,0.185831]
[1751637101436,0.94652439,108180.0,108170.0,0.255831]
[1751637101732,0.75652439,108180.0,108170.0,0.287731]
[1751637101936,0.75652439,108180.0,108170.0,0.217731]
[1751637102127,0.81652439,108180.0,108170.0,0.217731]
[1751637102328,0.83652439,108180.0,108170.0,0.217731]
[1751637102734,0.2828136,108180.0,108170.0,0.001]
[1751637103030,0.9112948,108180.0,108170.0,0.185831]
[1751637103642,0.4828136,108180.0,108170.0,0.185831]
[1751637103933,0.88652439,108180.0,108170.0,0.185831]
[1751637104532,0.88652439,108180.0,108170.0,0.186831]
[1751637104734,0.88952439,108180.0,108170.0,0.002]
[1751637104937,0.88952439,108180.0,108170.0,0.186831]
[1751637105124,0.88952439,108180.0,108170.0,0.002]
[1751637107336,0.4858136,108180.0,108170.0,0.002]
[1751637107539,0.88952439,108180.0,108170.0,0.002]
[1751637108640,1.25032439,108180.0,108170.0,0.002]
[1751637109238,0.1848652,108150.0,108140.0,0.70359387]
[1751637109442,1.0855452,108150.0,108140.0,1.07749387]
[1751637109639,1.48925599,108150.0,108140.0,1.07749387]
[1751637110137,0.59857599,108150.0,108140.0,1.07749387]
[1751637110339,1.48945599,108150.0,108140.0,1.07749387]
[1751637110540,1.48945599,108150.0,108140.0,1.07849387]
[1751637111741,1.49045599,108150.0,108140.0,1.08249387]
[1751637112440,1.0859452,108150.0,108140.0,1.08249387]
[1751637112840,1.0889452,108150.0,108140.0,1.08449387]
[1751637113342,1.49265599,108150.0,108140.0,0.99205517]
[1751637113643,1.1289452,108150.0,108140.0,0.99205517]
[1751637113841,1.57585599,108150.0,108140.0,0.99205517]
[1751637114141,1.60635599,108150.0,108140.0,0.99205517]
[1751637114641,1.57585599,108150.0,108140.0,0.99205517]
[1751637118335,1.88665599,108150.0,108140.0,0.48115207]
[1751637118531,2.26705599,108150.0,108140.0,0.29626977]
[1751637118734,1.91558657,108150.0,108140.0,0.48115207]
[1751637119135,2.27638657,108150.0,108140.0,0.48115207]
[1751637119335,2.26705599,108150.0,108140.0,0.48115207]
[1751637120130,1.90625599,108150.0,108140.0,0.84195207]
[1751637120336,1.90625599,108150.0,108140.0,0.48115207]
[1751637120844,1.90625599,108150.0,108140.0,0.84195207]
[1751637121039,0.37818469,108170.0,108160.0,0.1848481]
[1751637121249,1.09869989,108170.0,108160.0,0.5048481]
[1751637121541,1.50240648,108170.0,108160.0,0.9298481]
[1751637121738,1.50240648,108170.0,108160.0,0.5048481]
[1751637121934,2.28841727,108170.0,108160.0,0.32]
[1751637122136,0.1848652,108150.0,108140.0,0.30257987]
[1751637122345,0.90328,108150.0,108140.0,0.92737987]
[1751637122545,1.0881452,108150.0,108140.0,0.92737987]
[1751637122846,1.0881452,108150.0,108140.0,0.99157987]
[1751637123745,1.55485599,108150.0,108140.0,0.99257987]
[1751637123945,0.65157599,108150.0,108140.0,0.99257987]
[1751637124146,1.55841599,108150.0,108140.0,0.99257987]
[1751637124334,1.55941599,108150.0,108140.0,0.99457987]
[1751637128248,1.59061599,108150.0,108140.0,0.99457987]
[1751637128739,1.1869052,108150.0,108140.0,0.99457987]
[1751637128941,1.59061599,108150.0,108140.0,0.99457987]
[1751637129748,1.1557052,108150.0,108140.0,0.99457987]
[1751637130149,0.2488652,108150.0,108140.0,0.99457987]
[1751637130352,1.0929452,108150.0,108140.0,0.99457987]
[1751637130648,1.1626652,108150.0,108140.0,0.99457987]
[1751637131044,0.1888652,108150.0,108140.0,0.99457987]
[1751637131249,0.40828469,108170.0,108140.0,0.99457987]
[1751637131250,0.1848436,108170.0,108160.0,0.1848481]
[1751637131439,1.0887636,108170.0,108160.0,0.89526187]
[1751637131643,1.1687636,108170.0,108160.0,0.95846187]
[1751637131853,0.3538466,108180.0,108170.0,0.184831]
[1751637132151,1.2508794,108180.0,108170.0,0.578531]
[1751637132346,0.3472394,108180.0,108170.0,0.578531]
[1751637132548,1.58439019,108180.0,108170.0,0.578531]
[1751637132847,0.77452309,108190.0,108180.0,0.1848139]
[1751637133047,1.48914728,108190.0,108180.0,0.8256139]
[1751637133250,0.52250728,108190.0,108180.0,0.8578139]
[1751637133451,0.25590558,108190.0,108180.0,0.8909139]
[1751637133749,1.15934558,108190.0,108180.0,0.8909139]
[1751637133950,0.68914157,108200.0,108190.0,0.1847968]
[1751637133951,0.2838112,108200.0,108190.0,0.1847968]
[1751637134152,0.2838112,108200.0,108190.0,0.8977968]
[1751637134153,1.56432679,108200.0,108190.0,0.8977968]
[1751637134351,1.5394297,108200.0,108190.0,0.9641968]
[1751637134647,0.002,108200.0,108190.0,0.9641968]
[1751637134946,0.90492,108200.0,108190.0,0.9641968]
[1751637135150,0.002,108200.0,108190.0,0.9641968]
[1751637135349,0.002,108200.0,108190.0,1.55275558]
[1751637135649,0.91308,108200.0,108190.0,1.74890759]
[1751637136047,0.91308,108200.0,108190.0,1.3451968]
[1751637136651,0.91808,108200.0,108190.0,1.8461968]
[1751637136848,0.91108,108200.0,108190.0,1.8451968]
[1751637137055,0.013,108200.0,108190.0,1.8461968]
[1751637137754,0.007,108200.0,108190.0,1.8451968]
[1751637137952,0.011,108200.0,108190.0,1.8461968]
[1751637138352,0.006,108200.0,108190.0,1.8451968]
[1751637138549,0.1947797,108200.0,108190.0,1.8461968]
[1751637141755,0.59849049,108200.0,108190.0,1.4661968]
[1751637141955,0.01,108200.0,108190.0,1.4661968]
[1751637142157,0.9112,108200.0,108190.0,1.86990759]
[1751637142358,0.01,108200.0,108190.0,1.36990759]
[1751637142654,0.01,108200.0,108190.0,1.69990759]
[1751637142854,0.01,108200.0,108190.0,0.9661968]
[1751637143048,0.01,108200.0,108190.0,1.91475558]
[1751637143356,0.90092,108220.0,108210.0,0.3233094]
[1751637143545,2.43048549,108230.0,108210.0,0.3233094]
[1751637143546,1.18310549,108230.0,108220.0,0.1847455]
[1751637143746,2.43386549,108230.0,108220.0,0.4647455]